bitfinex/quotes_SOLUSD_20241021
["timestamp","ask_amount","ask_price","bid_price","bid_amount"]
[1729523999606,6.0854,164.33,164.26,23.902374]
[1729523999808,0.6048126,164.34,164.28,23.902374]
[1729523999995,0.6048126,164.34,164.32,23.776884]
[1729524000195,0.6048126,164.34,164.33,0.12549]
[1729524001303,0.6048126,164.34,164.33,43.902374]
[1729524002502,0.6048126,164.34,164.33,23.902374]
[1729524002818,0.6048126,164.34,164.27,22.634]
[1729524003228,30.0,164.33,164.28,0.12549]
[1729524003521,30.0,164.33,164.23,21.405]
[1729524003726,20.0,164.32,164.23,21.405]
[1729524004025,6.0866,164.3,164.23,21.405]
[1729524005209,6.0866,164.3,164.24,20.12549]
[1729524005522,36.0868,164.29,164.24,20.0]
[1729524005721,36.0868,164.29,164.25,0.12549]
[1729524006611,30.0,164.29,164.25,23.902374]
[1729524007425,6.086,164.31,164.25,23.902374]
[1729524007602,6.0869,164.29,164.25,0.12549]
[1729524007801,0.6048126,164.34,164.23,21.405]
[1729524008520,30.0,164.28,164.24,20.12549]
[1729524009404,30.0,164.28,164.26,0.12549]
[1729524009619,6.0867,164.3,164.26,0.12549]
[1729524010319,0.6048126,164.34,164.26,0.12549]
[1729524010521,0.6048126,164.34,164.23,21.405]
[1729524010709,6.0879,164.26,164.23,21.405]
[1729524011211,6.0879,164.26,164.22,20.0]
[1729524011717,6.0879,164.26,164.23,0.12549]
[1729524012105,6.0879,164.26,164.23,23.902374]
[1729524012301,16.3619,164.32,164.19,21.5212]
[1729524012508,6.0893,164.22,164.19,21.5212]
[1729524012705,6.0893,164.22,164.15,22.4334]
[1729524013515,6.0885,164.25,164.22,0.12549]
[1729524014223,15.2188,164.27,164.15,22.4334]
[1729524014402,20.0,164.26,164.15,22.4334]
[1729524014604,15.2207,164.25,164.22,0.12549]
[1729524014815,6.089,164.23,164.22,0.12549]
[1729524015418,50.0,164.24,164.15,22.4334]
[1729524015604,6.0893,164.22,164.15,22.4334]
[1729524015805,36.0893,164.22,164.21,22.540541]
[1729524018033,30.0,164.22,164.21,22.540541]
[1729524019426,30.0,164.22,164.21,46.317425]
[1729524019603,16.3619,164.32,164.22,23.902374]
[1729524019807,6.089,164.23,164.22,0.12549]
[1729524020736,36.089,164.23,164.22,0.12549]
[1729524024231,30.0,164.23,164.22,23.902374]
[1729524025212,6.0893,164.22,164.21,22.415051]
[1729524025418,36.0893,164.22,164.21,22.415051]
[1729524025934,6.0893,164.22,164.21,22.540541]
[1729524026936,36.0893,164.22,164.21,22.540541]
[1729524027239,30.0,164.22,164.21,46.317425]
[1729524028433,6.0886,164.25,164.22,23.902374]
[1729524028639,30.0,164.23,164.22,23.902374]
[1729524034323,36.089,164.23,164.22,23.902374]
[1729524034741,30.0,164.23,164.22,23.902374]
[1729524036624,17.4194558,164.32,164.24,0.12549]
[1729524036625,16.2718558,164.32,164.24,0.12549]
[1729524036934,0.6048126,164.34,164.24,0.12549]
[1729524036935,30.0,164.25,164.24,43.902374]
[1729524037726,6.0861,164.31,164.26,23.902374]
[1729524037929,30.0,164.27,164.26,23.902374]
[1729524038333,6.0871,164.29,164.26,23.902374]
[1729524040148,0.6048126,164.34,164.22,21.5833]
[1729524040319,6.0891,164.23,164.21,22.415051]
[1729524040624,6.0882,164.25,164.22,0.12549]
[1729524041749,30.0,164.26,164.22,23.902374]
[1729524044453,6.0882,164.25,164.22,23.902374]
[1729524044844,6.0882,164.25,164.22,23.776884]
[1729524045153,6.0882,164.25,164.23,0.12549]
[1729524045350,30.0,164.24,164.23,0.12549]
[1729524045648,30.0,164.24,164.21,22.415051]
[1729524045845,6.0893,164.22,164.21,22.415051]
[1729524046232,6.0893,164.22,164.21,22.540541]
[1729524046431,36.0893,164.22,164.21,22.540541]
[1729524048845,30.0,164.22,164.21,46.317425]
[1729524051465,36.0893,164.22,164.21,22.540541]
[1729524052950,30.0,164.22,164.21,22.540541]
[1729524058734,30.0,164.22,164.21,46.317425]
[1729524058962,6.0884,164.25,164.22,23.902374]
[1729524059150,30.0,164.23,164.22,23.902374]
[1729524059956,6.0879,164.26,164.22,23.902374]
[1729524060740,6.0874,164.28,164.22,23.902374]
[1729524061047,20.0,164.29,164.22,23.902374]
[1729524061655,6.0882,164.26,164.22,23.902374]
[1729524062965,6.0884,164.25,164.22,23.902374]
[1729524063345,20.0,164.29,164.22,0.12549]
[1729524063549,6.0893,164.22,164.21,22.415051]
[1729524064553,56.0893,164.22,164.21,22.415051]
[1729524065261,56.0893,164.22,164.21,22.540541]
[1729524067449,56.0893,164.22,164.21,22.415051]
[1729524067852,56.0893,164.22,164.21,22.540541]
[1729524086757,56.0893,164.22,164.21,22.415051]
[1729524087157,56.0893,164.22,164.21,22.540541]
[1729524092280,56.1893,164.22,164.21,22.540541]
[1729524092453,56.1893,164.22,164.21,19.443341]
[1729524092780,56.1893,164.22,164.21,10.945741]
[1729524093684,56.1893,164.22,164.21,7.271441]
[1729524093877,56.0893,164.22,164.21,7.271441]
[1729524105587,0.1,164.19,164.11,22.7202]
[1729524105888,6.0931,164.12,164.11,22.7202]
[1729524106086,6.0931,164.12,164.11,22.84569]
[1729524106384,6.0931,164.12,164.11,22.7202]
[1729524106562,6.0931,164.12,164.11,22.84569]
[1729524106767,6.0931,164.12,164.11,22.7202]
[1729524106768,36.0931,164.12,164.11,22.7202]
[1729524107469,36.0931,164.12,164.11,22.84569]
[1729524110113,36.0931,164.12,164.11,22.7202]
[1729524110389,6.0934,164.11,164.07,22.2427]
[1729524110588,6.0942,164.09,164.08,0.12549]
[1729524111678,36.0942,164.09,164.08,0.12549]
[1729524117277,56.0942,164.09,164.08,0.12549]
[1729524118194,6.0955,164.06,164.04,16.0455]
[1729524118386,50.0,164.09,164.04,16.0455]
[1729524118699,6.0953,164.07,164.04,16.0455]
[1729524119284,6.0953,164.07,164.05,0.12549]
[1729524119807,6.0953,164.06,164.05,0.12549]
[1729524120021,50.0,164.09,164.03,6.1428]
[1729524120303,6.0972,164.01,163.98,542.7885]
[1729524120492,20.0,164.05,163.98,542.7885]
[1729524120695,6.0978,164.0,163.98,542.7885]
[1729524120882,15.2406,164.04,163.98,542.7885]
[1729524120883,20.0,164.03,163.98,542.7885]
[1729524121083,6.0979,163.99,163.98,536.507]
[1729524121283,26.0979,163.99,163.98,536.507]
[1729524122125,26.1979,163.99,163.98,536.507]
[1729524122662,26.0979,163.99,163.98,536.507]
[1729524123606,26.0979,163.99,163.98,536.63249]
[1729524125705,20.0,164.04,163.99,0.12549]
[1729524125996,45.2364,164.09,163.99,15.62229]
[1729524126180,6.0953,164.06,163.99,15.62229]
[1729524127308,6.0961,164.04,163.99,15.62229]
[1729524128306,6.0965,164.03,163.99,15.62229]
[1729524128496,20.0,164.06,163.99,15.4968]
[1729524128683,0.1,164.05,163.98,536.507]
[1729524129094,20.0,164.03,163.99,0.12549]
[1729524129303,6.0979,164.0,163.99,0.12549]
[1729524129604,20.0,164.03,163.99,0.12549]
[1729524129605,20.0,164.01,163.99,0.12549]
[1729524130384,20.0,164.03,163.99,0.12549]
[1729524130783,30.0,164.09,163.99,0.12549]
[1729524130997,20.0,164.04,163.99,0.12549]
[1729524131810,30.0,164.09,163.99,23.902374]
[1729524132390,6.0945,164.08,163.99,23.902374]
[1729524132578,30.0,164.09,163.99,23.902374]
[1729524132784,6.0951,164.07,163.99,23.902374]
[1729524133196,20.0,164.06,163.99,23.902374]
[1729524133400,30.0,164.09,163.99,23.902374]
[1729524133906,15.2364,164.08,163.99,23.902374]
[1729524134121,6.0972,164.01,163.98,536.507]
[1729524134288,6.0976,164.0,163.98,536.507]
[1729524134489,0.1,164.06,163.98,536.507]
[1729524134706,6.0978,164.0,163.99,0.12549]
[1729524134900,15.2401,164.04,163.98,536.507]
[1729524135097,26.0979,163.99,163.98,536.507]
[1729524135297,26.0979,163.99,163.98,536.63249]
[1729524135508,26.0979,163.99,163.98,536.507]
[1729524136013,26.0979,163.99,163.98,536.63249]
[1729524136188,26.0979,163.99,163.98,536.507]
[1729524137106,26.1979,163.99,163.98,536.507]
[1729524137618,26.1979,163.99,163.98,534.63249]
[1729524138184,26.1979,163.99,163.98,534.507]
[1729524138586,26.0979,163.99,163.98,534.63249]
[1729524142329,20.0,163.99,163.98,534.63249]
[1729524144626,6.0975,164.0,163.99,0.12549]
[1729524145615,6.097,164.02,163.99,0.12549]
[1729524145909,6.0967,164.03,163.99,0.12549]
[1729524146491,30.0,164.09,163.99,23.902374]
[1729524146714,6.0954,164.06,163.99,23.902374]
[1729524146913,6.0958,164.05,163.99,23.902374]
[1729524147097,30.0,164.09,163.99,23.902374]
[1729524147304,6.0961,164.04,163.99,23.902374]
[1729524150596,20.0,164.08,163.99,23.902374]
[1729524150800,36.0945,164.09,163.99,23.902374]
[1729524151299,6.0946,164.08,163.99,23.902374]
[1729524152308,20.0,164.07,163.99,23.902374]
[1729524153013,30.0,164.09,164.01,0.12549]
[1729524153219,36.0942,164.09,164.01,23.902374]
[1729524153803,30.0,164.09,164.01,23.902374]
[1729524154105,6.0946,164.08,164.01,23.902374]
[1729524154819,30.0,164.09,164.01,23.902374]
[1729524155025,6.0953,164.06,164.01,23.902374]
[1729524155893,6.0956,164.06,164.0,16.1679]
[1729524156516,6.0956,164.06,164.01,0.12549]
[1729524157013,6.0956,164.06,164.01,23.902374]
[1729524161402,6.0957,164.05,164.01,23.902374]
[1729524164010,30.0,164.09,164.01,0.12549]
[1729524164321,6.0961,164.04,164.01,0.12549]
[1729524164998,20.0,164.08,164.01,0.12549]
[1729524165218,20.0,164.06,163.98,540.5736]
[1729524165419,20.1,164.08,163.98,540.5736]
[1729524165624,6.0971,164.02,163.98,540.5736]
[1729524165926,6.0973,164.01,163.99,0.12549]
[1729524166506,6.0973,164.01,163.98,540.5736]
[1729524166906,6.0976,164.0,163.99,0.12549]
[1729524168924,6.0979,163.99,163.98,534.507]
[1729524169522,6.0974,164.01,163.99,0.12549]
[1729524169702,20.0,164.05,163.99,0.12549]
[1729524169904,6.0968,164.02,163.99,0.12549]
[1729524170726,6.0972,164.01,163.99,0.12549]
[1729524172619,6.0975,164.01,163.99,0.12549]
[1729524172819,6.0975,164.0,163.99,0.12549]
[1729524174523,20.1,164.05,163.98,534.507]
[1729524174824,26.0979,163.99,163.98,534.507]
[1729524175815,26.0979,163.99,163.98,534.63249]
[1729524176119,26.0979,163.99,163.98,534.507]
[1729524177026,26.0979,163.99,163.98,534.63249]
[1729524178726,56.0979,163.99,163.98,534.63249]
[1729524179807,79.974784,163.99,163.98,522.9982]
[1729524180014,79.974784,163.99,163.98,508.03689]
[1729524180201,79.974784,163.99,163.98,501.0722]
[1729524180421,79.974784,163.99,163.98,482.7055]
[1729524180730,79.974784,163.99,163.98,482.83099]
[1729524180935,79.974784,163.99,163.98,468.21269]
[1729524181225,79.974784,163.99,163.98,461.35729]
[1729524181433,79.974784,163.99,163.98,454.57779]
[1729524181723,79.974784,163.99,163.98,440.13419]
[1729524181927,80.074784,163.99,163.98,328.33719617]
[1729524182140,86.00132157,163.99,163.98,267.46632893]
[1729524182309,86.00132157,163.99,163.98,255.28442893]
[1729524182652,107.72817832,163.99,163.98,204.38058229]
[1729524182807,107.72817832,163.99,163.98,183.93807229]
[1729524183130,122.98230389,163.99,163.98,104.3199436]
[1729524183328,141.28230389,163.99,163.98,29.7187826]
[1729524183937,6.1031,163.85,163.84,16.4567]
[1729524184115,6.1038,163.83,163.79,16.1769]
[1729524184429,6.1038,163.83,163.8,0.12549]
[1729524185321,6.1043,163.82,163.79,16.1769]
[1729524185629,6.1043,163.82,163.8,0.12549]
[1729524185811,6.1043,163.82,163.79,16.1769]
[1729524186423,6.1043,163.82,163.8,0.12549]
[1729524187831,0.1,163.86,163.8,0.12549]
[1729524188037,0.1,163.84,163.77,0.6048126]
[1729524188206,20.0,163.8,163.77,0.6048126]
[1729524188403,6.1056,163.79,163.77,0.6048126]
[1729524189216,36.1057,163.78,163.77,0.6048126]
[1729524189803,56.1057,163.78,163.77,0.6048126]
[1729524190118,56.1057,163.78,163.77,0.7303026]
[1729524190321,56.1057,163.78,163.77,0.6048126]
[1729524190836,56.1057,163.78,163.77,0.7303026]
[1729524191331,56.1057,163.78,163.77,0.6048126]
[1729524191512,79.982584,163.78,163.77,0.6048126]
[1729524192425,56.1057,163.78,163.77,0.6048126]
[1729524192732,56.1057,163.78,163.77,0.7303026]
[1729524195632,79.982584,163.78,163.77,0.6048126]
[1729524196332,79.982584,163.78,163.77,0.7303026]
[1729524202214,6.1076,163.73,163.72,0.12549]
[1729524202420,56.1076,163.73,163.72,0.12549]
[1729524206940,56.1076,163.73,163.6,0.7048126]
[1729524206941,6.1091,163.69,163.62,22.945]
[1729524207125,6.1088,163.7,163.63,0.12549]
[1729524207533,20.0,163.72,163.62,22.945]
[1729524207845,6.1093,163.69,163.62,22.945]
[1729524208149,6.1093,163.69,163.63,0.12549]
[1729524208647,6.1088,163.7,163.63,0.12549]
[1729524209340,6.109,163.7,163.63,0.12549]
[1729524209643,30.0,163.68,163.63,0.12549]
[1729524210436,20.0,163.72,163.63,23.902374]
[1729524210642,6.1075,163.74,163.67,0.12549]
[1729524210941,6.108,163.72,163.67,0.12549]
[1729524211330,20.0,163.75,163.67,0.12549]
[1729524211538,6.1073,163.74,163.67,0.12549]
[1729524211733,20.0,163.73,163.69,0.12549]
[1729524211929,6.05614427,163.8,163.69,0.12549]
[1729524212156,6.1068,163.76,163.69,0.12549]
[1729524213050,15.2601,163.83,163.73,0.12549]
[1729524213252,6.05614427,163.85,163.73,0.12549]
[1729524213554,1.16057888,163.85,163.73,0.12549]
[1729524213742,6.1049,163.81,163.73,0.12549]
[1729524214344,0.1,163.83,163.73,0.12549]
[1729524214545,6.1058,163.78,163.73,0.12549]
[1729524214748,20.0,163.79,163.73,0.12549]
[1729524216232,20.0,163.8,163.73,0.12549]
[1729524217435,20.0,163.8,163.75,0.12549]
[1729524217938,20.0,163.83,163.75,0.12549]
[1729524218143,6.104,163.83,163.75,0.12549]
[1729524218450,6.1043,163.82,163.77,0.12549]
[1729524219236,0.1,163.87,163.77,0.12549]
[1729524219443,6.1046,163.81,163.77,0.12549]
[1729524220254,20.0,163.85,163.77,0.12549]
[1729524220556,6.1043,163.82,163.77,0.12549]
[1729524227251,20.0,163.85,163.77,0.12549]
[1729524227456,6.1049,163.81,163.77,0.12549]
[1729524230865,16.31546943,163.88,163.77,0.12549]
[1729524231036,1.06036943,163.88,163.8,23.776884]
[1729524231361,6.1019,163.89,163.81,0.12549]
[1729524232063,6.1021,163.88,163.81,0.12549]
[1729524233161,16.31041186,163.94,163.81,0.12549]
[1729524233345,6.1007,163.92,163.85,0.12549]
[1729524234067,6.1013,163.9,163.85,0.12549]
[1729524237744,20.0,163.9,163.85,0.12549]
[1729524238068,6.101,163.91,163.85,0.12549]
[1729524238958,0.1,163.96,163.85,0.12549]
[1729524238959,23.776884,163.96,163.85,0.12549]
[1729524239162,6.1014,163.9,163.85,0.12549]
[1729524239466,20.1,163.95,163.83,6.0628]
[1729524239644,6.1023,163.88,163.83,6.0628]
[1729524240040,0.2,163.95,163.83,6.0628]
[1729524240041,20.2,163.95,163.84,0.12549]
[1729524240378,20.0,163.91,163.83,6.0628]
[1729524240662,6.1037,163.84,163.82,16.1763]
[1729524240848,6.1037,163.84,163.83,0.12549]
[1729524241570,36.1037,163.84,163.83,0.12549]
[1729524242471,30.0,163.84,163.83,0.12549]
[1729524243069,6.1013,163.9,163.85,0.12549]
[1729524244555,6.1006,163.92,163.85,23.902374]
[1729524246346,6.0995,163.95,163.87,23.902374]
[1729524246551,1.0603104,163.97,163.87,23.902374]
[1729524246753,6.0998,163.94,163.87,23.902374]
[1729524250446,6.1001,163.94,163.87,23.902374]
[1729524251361,6.1002,163.93,163.87,23.902374]
[1729524252253,6.1012,163.91,163.86,16.2708]
[1729524252455,6.1012,163.9,163.86,16.2708]
[1729524252660,1.0603104,163.97,163.87,0.12549]
[1729524252849,20.0,163.92,163.87,0.12549]
[1729524253373,26.1007,163.92,163.87,0.12549]
[1729524253776,6.1007,163.92,163.87,0.12549]
[1729524253982,6.1002,163.93,163.87,23.902374]
[1729524255554,6.0998,163.94,163.87,23.902374]
[1729524255981,31.55021289,163.99,163.87,23.902374]
[1729524255982,20.0,163.97,163.87,23.902374]
[1729524256168,6.1004,163.93,163.87,23.902374]
[1729524256478,6.1005,163.92,163.87,23.902374]
[1729524256679,6.1019,163.89,163.86,16.2708]
[1729524256859,6.102,163.88,163.86,16.2708]
[1729524257060,20.1,163.95,163.84,6.1445]
[1729524257271,6.1023,163.87,163.84,6.1445]
[1729524257667,6.1023,163.87,163.85,0.12549]
[1729524258262,6.1023,163.87,163.82,15.1148]
[1729524258263,6.1044,163.82,163.78,16.0743]
[1729524258465,26.30748201,163.93,163.78,16.0743]
[1729524258466,20.0,163.86,163.78,16.0743]
[1729524259056,6.1038,163.84,163.78,16.0743]
[1729524259674,6.1041,163.83,163.79,0.12549]
[1729524260686,6.1031,163.85,163.79,0.12549]
[1729524260882,6.1028,163.86,163.79,23.902374]
[1729524262594,6.1022,163.88,163.79,23.902374]
[1729524262996,6.1025,163.87,163.79,23.902374]
[1729524265596,6.1028,163.86,163.79,23.902374]
[1729524266373,20.0,163.91,163.79,0.12549]
[1729524266591,6.1038,163.84,163.79,0.12549]
[1729524267369,6.1028,163.86,163.79,0.12549]
[1729524267575,6.1028,163.86,163.79,23.902374]
[1729524268991,20.0,163.88,163.79,23.902374]
[1729524269186,6.1032,163.85,163.79,23.902374]
[1729524269396,6.1037,163.84,163.79,0.12549]
[1729524272593,6.1041,163.83,163.79,0.12549]
[1729524273171,0.1,163.88,163.78,16.0743]
[1729524273387,6.1054,163.79,163.72,20.0]
[1729524273592,43.776884,163.86,163.73,0.12549]
[1729524273796,15.2604,163.83,163.73,0.12549]
[1729524273972,6.1056,163.79,163.73,0.12549]
[1729524274600,6.1056,163.79,163.73,23.902374]
[1729524274769,6.1056,163.79,163.74,20.0]
[1729524275281,6.1056,163.79,163.72,20.0]
[1729524275582,6.1042,163.82,163.72,20.1]
[1729524275982,6.1042,163.82,163.75,0.12549]
[1729524276683,6.1047,163.81,163.75,0.12549]
[1729524278096,6.1045,163.82,163.75,0.12549]
[1729524278279,6.1045,163.82,163.75,23.902374]
[1729524281985,6.3687864,163.84,163.79,0.12549]
[1729524282185,20.0,163.84,163.79,0.12549]
[1729524282386,6.1032,163.85,163.79,0.12549]
[1729524282877,6.36890729,163.86,163.79,23.902374]
[1729524283081,6.102,163.88,163.79,23.902374]
[1729524283475,6.1017,163.89,163.81,23.902374]
[1729524283886,12.46934654,163.91,163.81,23.902374]
[1729524284102,6.36814654,163.91,163.83,23.902374]
[1729524284276,6.1006,163.92,163.83,23.902374]
[1729524284903,6.1006,163.92,163.85,0.12549]
[1729524285256,6.36785489,163.94,163.85,23.902374]
[1729524285498,6.0994,163.95,163.87,23.902374]
[1729524285706,6.46682701,163.97,163.87,0.12549]
[1729524285917,0.1,163.96,163.84,23.0383]
[1729524286080,6.1023,163.88,163.84,23.0383]
[1729524286400,6.1023,163.88,163.85,0.12549]
[1729524287098,6.1017,163.89,163.85,0.12549]
[1729524291394,6.1023,163.88,163.85,0.12549]
[1729524292497,43.776884,163.93,163.85,0.12549]
[1729524292701,6.1026,163.87,163.8,22.6679]
[1729524292883,6.1026,163.87,163.81,0.12549]
[1729524293687,6.1021,163.88,163.81,0.12549]
[1729524294290,6.1013,163.9,163.81,23.902374]
[1729524294713,6.1016,163.89,163.81,23.902374]
[1729524296008,20.0,163.9,163.81,23.902374]
[1729524296207,26.1014,163.9,163.81,23.902374]
[1729524296588,6.1014,163.9,163.81,23.902374]
[1729524296814,20.0,163.91,163.81,23.902374]
[1729524297109,6.1022,163.88,163.81,23.902374]
[1729524297703,6.1026,163.87,163.81,0.12549]
[1729524297894,6.1028,163.86,163.81,0.12549]
[1729524298509,6.1029,163.86,163.81,0.12549]
[1729524299786,6.1035,163.85,163.81,0.12549]
[1729524300091,6.1038,163.84,163.8,16.1996]
[1729524300309,20.0,163.87,163.81,0.12549]
[1729524300613,15.2559,163.87,163.76,21.7395]
[1729524300796,6.1041,163.83,163.76,21.7395]
[1729524301197,6.1049,163.81,163.76,21.7395]
[1729524301409,15.2578,163.85,163.76,21.7395]
[1729524301598,6.1049,163.81,163.76,21.7395]
[1729524301919,15.2578,163.85,163.76,21.7395]
[1729524301920,20.0,163.84,163.76,21.7395]
[1729524302124,6.1038,163.83,163.77,0.12549]
[1729524302300,6.1049,163.81,163.77,0.12549]
[1729524304120,30.6107,163.88,163.76,21.7395]
[1729524304121,20.0,163.82,163.76,15.7201]
[1729524304294,6.1062,163.77,163.72,23.1702]
[1729524304493,6.1062,163.77,163.73,0.12549]
[1729524304720,20.0,163.79,163.73,0.12549]
[1729524306223,26.1054,163.79,163.73,0.12549]
[1729524306913,6.106,163.78,163.73,0.12549]
[1729524308418,20.0,163.8,163.68,6.6657]
[1729524308631,6.107,163.75,163.68,23.1702]
[1729524308792,6.107,163.75,163.69,0.12549]
[1729524309823,6.107,163.75,163.69,23.902374]
[1729524311723,5.6065,163.76,163.69,23.902374]
[1729524311929,20.0,163.77,163.69,23.902374]
[1729524312224,26.1062,163.77,163.69,23.902374]
[1729524316130,20.0,163.8,163.69,23.902374]
[1729524316337,6.1066,163.76,163.69,0.12549]
[1729524317018,20.0,163.78,163.69,0.12549]
[1729524317216,6.1069,163.75,163.69,0.12549]
[1729524321627,20.0,163.76,163.69,0.12549]
[1729524323241,26.1066,163.76,163.69,0.12549]
[1729524323937,6.1066,163.76,163.69,0.12549]
[1729524324613,21.62718517,163.79,163.69,0.12549]
[1729524324813,6.1066,163.76,163.69,0.12549]
[1729524325010,26.106,163.78,163.69,23.902374]
[1729524325239,6.1061,163.77,163.69,0.12549]
[1729524325437,6.1065,163.76,163.69,0.12549]
[1729524326017,6.1076,163.74,163.68,16.5045]
[1729524326213,36.1076,163.74,163.69,0.12549]
[1729524326428,30.0,163.74,163.68,16.5045]
[1729524326919,36.1072,163.74,163.69,0.12549]
[1729524327122,6.1079,163.72,163.64,22.7217]
[1729524327547,6.1079,163.72,163.65,0.12549]
[1729524327920,6.1079,163.72,163.64,6.71600909]
[1729524328244,30.0,163.71,163.64,6.71600909]
[1729524333152,20.0,163.74,163.65,23.776884]
[1729524333530,6.107,163.75,163.65,23.776884]
[1729524333729,20.0,163.74,163.65,23.776884]
[1729524333926,6.1073,163.74,163.65,23.776884]
[1729524335546,20.0,163.76,163.65,23.776884]
[1729524335754,6.36621634,163.76,163.67,23.902374]
[1729524336052,6.1053,163.79,163.68,0.1]
[1729524336250,6.1053,163.79,163.7,15.94339]
[1729524336433,6.36567175,163.8,163.72,0.12549]
[1729524336636,15.2601,163.83,163.72,0.12549]
[1729524336637,30.0,163.73,163.72,0.12549]
[1729524336834,6.1054,163.79,163.7,15.8179]
[1729524337362,6.1062,163.77,163.71,0.12549]
[1729524337663,6.1058,163.78,163.71,0.12549]
[1729524338231,6.36560479,163.82,163.71,0.12549]
[1729524338232,20.0,163.81,163.71,0.12549]
[1729524338430,20.0,163.79,163.71,0.12549]
[1729524338860,6.36560479,163.82,163.72,0.1]
[1729524339155,6.1028,163.86,163.74,23.902374]
[1729524339361,6.1028,163.86,163.76,23.902374]
[1729524339557,6.1034,163.85,163.76,23.902374]
[1729524339749,15.8189,163.89,163.76,0.12549]
[1729524339934,6.1036,163.84,163.76,0.12549]
[1729524340139,6.1039,163.83,163.76,0.12549]
[1729524342541,26.1043,163.82,163.76,0.12549]
[1729524344655,6.1036,163.84,163.76,0.12549]
[1729524344853,20.0,163.83,163.76,0.12549]
[1729524347141,6.1043,163.82,163.73,15.0059]
[1729524347349,6.1049,163.81,163.73,15.0059]
[1729524348049,6.1049,163.81,163.74,0.12549]
[1729524348445,6.105,163.8,163.74,0.12549]
[1729524348873,20.0,163.81,163.74,0.12549]
[1729524349957,6.1045,163.82,163.74,0.12549]
[1729524350263,20.0,163.81,163.74,0.12549]
[1729524351265,6.1046,163.81,163.74,0.12549]
[1729524354968,6.106,163.78,163.69,15.8029]
[1729524355140,6.1065,163.76,163.69,15.8029]
[1729524355353,6.1069,163.75,163.69,15.8029]
[1729524355552,20.2,163.82,163.69,15.8029]
[1729524355870,26.1065,163.76,163.7,0.12549]
[1729524356581,20.0,163.76,163.7,0.12549]
[1729524356754,6.1059,163.78,163.7,0.12549]
[1729524360487,6.1071,163.75,163.7,0.12549]
[1729524360788,6.1071,163.75,163.69,15.8029]
[1729524360970,6.1073,163.74,163.69,15.8029]
[1729524361291,15.7873,163.76,163.65,15.0832]
[1729524361478,6.108,163.72,163.65,15.0832]
[1729524361686,6.1086,163.71,163.65,15.0832]
[1729524361870,6.1097,163.68,163.62,5.54130909]
[1729524362074,6.1097,163.68,163.62,4.61927542]
[1729524362412,6.1097,163.68,163.63,0.12549]
[1729524362559,6.1097,163.68,163.6,0.6048126]
[1729524362967,60.87971014,163.74,163.6,0.6048126]
[1729524363186,26.1102,163.67,163.6,0.6048126]
[1729524363414,20.0,163.67,163.61,0.12549]
[1729524363702,20.0,163.67,163.6,0.6048126]
[1729524363703,36.1102,163.66,163.6,0.6048126]
[1729524363872,30.0,163.66,163.6,0.6048126]
[1729524364180,20.0,163.65,163.6,0.6048126]
[1729524364576,30.0,163.64,163.61,0.12549]
[1729524365171,36.1109,163.64,163.6,0.6048126]
[1729524365395,26.1113,163.63,163.6,0.6048126]
[1729524365570,30.0,163.61,163.6,0.6048126]
[1729524367368,30.0,163.61,163.6,0.7303026]
[1729524373211,20.0,163.66,163.61,0.12549]